[Event "Titled Tuesday Blitz July 11 Early 2023"]
[White "Nunez V, Gustavo Eduardo"]
[Black "Mangialardo, Tiago Carvalho"]
[WhiteFideId "4403690"]
[BlackFideId "2130718"]
[WhiteElo "2449"]
[BlackElo "2130"]
[Result "1-0"]
[Round "4"]
[TimeControl "180+2"]
[Date "2023.07.11"]
[WhiteClock "0:00:59"]
[BlackClock "0:00:00"]
[Board "177"]

1. e4 {[%clk 0:03:00]}  Nf6 {[%clk 0:02:59]} 2. Nc3 {[%clk 0:03:00]}  d5 {[%clk 0:02:58]} 3. exd5 {[%clk 0:02:57]}  Nxd5 {[%clk 0:02:58]} 4. Bc4 {[%clk 0:02:57]}  Nxc3 {[%clk 0:02:58]} 5. Qf3 {[%clk 0:02:57]}  e6 {[%clk 0:02:57]} 6. dxc3 {[%clk 0:02:57]}  g6 {[%clk 0:02:57]} 7. Bf4 {[%clk 0:02:49]}  Bg7 {[%clk 0:02:55]} 8. Rd1 {[%clk 0:02:48]}  Qe7 {[%clk 0:02:55]} 9. Ne2 {[%clk 0:02:37]}  O-O {[%clk 0:02:41]} 10. O-O {[%clk 0:02:28]}  Nc6 {[%clk 0:01:59]} 11. Rfe1 {[%clk 0:02:22]}  Ne5 {[%clk 0:01:23]} 12. Bxe5 {[%clk 0:02:17]}  Bxe5 {[%clk 0:01:24]} 13. Nd4 {[%clk 0:02:17]}  Bd6 {[%clk 0:01:22]} 14. Nb5 {[%clk 0:02:01]}  Bc5 {[%clk 0:01:21]} 15. b4 {[%clk 0:01:59]}  Bb6 {[%clk 0:01:21]} 16. Nd4 {[%clk 0:01:51]}  a6 {[%clk 0:01:10]} 17. Nb3 {[%clk 0:01:46]}  Rb8 {[%clk 0:01:05]} 18. a4 {[%clk 0:01:44]}  Bd7 {[%clk 0:00:59]} 19. a5 {[%clk 0:01:41]}  Bc6 {[%clk 0:00:53]} 20. Qg3 {[%clk 0:01:41]}  Ba7 {[%clk 0:00:53]} 21. h4 {[%clk 0:01:38]}  Rbd8 {[%clk 0:00:39]} 22. h5 {[%clk 0:01:38]}  Qf6 {[%clk 0:00:26]} 23. hxg6 {[%clk 0:01:35]}  hxg6 {[%clk 0:00:27]} 24. Rd3 {[%clk 0:01:24]}  Rxd3 {[%clk 0:00:24]} 25. Bxd3 {[%clk 0:01:16]}  Qxc3 {[%clk 0:00:18]} 26. Kf1 {[%clk 0:01:02]}  Qxb4 {[%clk 0:00:00]} 27. Rxe6 {[%clk 0:00:59]} 1-0


[Site "https://www.chess.com"]

[Event "Titled Tuesday Blitz July 11 Early 2023"]
[White "Itkis, Boris"]
[Black "Tarnowska, Aleksandra"]
[WhiteFideId "1209167"]
[BlackFideId "1180967"]
[WhiteElo "2443"]
[BlackElo "2123"]
[Result "1-0"]
[Round "4"]
[TimeControl "180+2"]
[Date "2023.07.11"]
[WhiteClock "0:00:38"]
[BlackClock "0:00:03"]
[Board "179"]

1. c4 {[%clk 0:02:08]}  e5 {[%clk 0:02:58]} 2. Nc3 {[%clk 0:02:08]}  Nf6 {[%clk 0:02:56]} 3. Nf3 {[%clk 0:02:08]}  Nc6 {[%clk 0:02:49]} 4. e4 {[%clk 0:02:06]}  Bb4 {[%clk 0:02:45]} 5. d3 {[%clk 0:02:05]}  d6 {[%clk 0:02:43]} 6. a3 {[%clk 0:02:04]}  Bxc3+ {[%clk 0:02:43]} 7. bxc3 {[%clk 0:02:05]}  Bg4 {[%clk 0:02:42]} 8. g3 {[%clk 0:02:04]}  Qd7 {[%clk 0:02:12]} 9. h3 {[%clk 0:02:01]}  Bxf3 {[%clk 0:01:59]} 10. Qxf3 {[%clk 0:02:02]}  Na5 {[%clk 0:02:00]} 11. Qd1 {[%clk 0:01:55]}  Qc6 {[%clk 0:01:47]} 12. Bg2 {[%clk 0:01:49]}  h5 {[%clk 0:01:46]} 13. O-O {[%clk 0:01:47]}  h4 {[%clk 0:01:21]} 14. g4 {[%clk 0:01:37]}  Qd7 {[%clk 0:01:02]} 15. f4 {[%clk 0:01:34]}  exf4 {[%clk 0:00:58]} 16. Bxf4 {[%clk 0:01:35]}  Qe7 {[%clk 0:00:44]} 17. Bg5 {[%clk 0:01:26]}  Qe6 {[%clk 0:00:39]} 18. Qa4+ {[%clk 0:00:57]}  Nc6 {[%clk 0:00:30]} 19. Bxf6 {[%clk 0:00:49]}  gxf6 {[%clk 0:00:29]} 20. Rab1 {[%clk 0:00:49]}  Qc8 {[%clk 0:00:20]} 21. e5 {[%clk 0:00:40]}  fxe5 {[%clk 0:00:08]} 22. Rxb7 {[%clk 0:00:39]}  Qxb7 {[%clk 0:00:02]} 23. Bxc6+ {[%clk 0:00:38]}  Qxc6 {[%clk 0:00:02]} 24. Qxc6+ {[%clk 0:00:39]}  Ke7 {[%clk 0:00:03]} 25. Qxc7+ {[%clk 0:00:38]}  Ke6 {[%clk 0:00:03]} 26. Qxf7# {[%clk 0:00:38]} 1-0


[Site "https://www.chess.com"]

[Event "Titled Tuesday Blitz July 11 Early 2023"]
[White "Khromkin, Andrey"]
[Black "Tqebuchava, Zurab"]
[WhiteFideId "4154126"]
[BlackFideId "13601113"]
[WhiteElo "2438"]
[BlackElo "2057"]
[Result "1-0"]
[Round "4"]
[TimeControl "180+2"]
[Date "2023.07.11"]
[WhiteClock "0:00:12"]
[BlackClock "0:00:00"]
[Board "183"]

1. d4 {[%clk 0:03:00]}  g6 {[%clk 0:02:59]} 2. c4 {[%clk 0:03:01]}  Bg7 {[%clk 0:02:59]} 3. Nf3 {[%clk 0:03:02]}  d6 {[%clk 0:02:59]} 4. Nc3 {[%clk 0:03:02]}  Bg4 {[%clk 0:02:56]} 5. g3 {[%clk 0:03:03]}  Bxf3 {[%clk 0:02:56]} 6. exf3 {[%clk 0:03:03]}  Nc6 {[%clk 0:02:53]} 7. Be3 {[%clk 0:03:03]}  Nf6 {[%clk 0:02:51]} 8. Bg2 {[%clk 0:03:03]}  e5 {[%clk 0:02:46]} 9. O-O {[%clk 0:03:03]}  exd4 {[%clk 0:02:44]} 10. Bxd4 {[%clk 0:03:03]}  Nxd4 {[%clk 0:02:44]} 11. Qxd4 {[%clk 0:03:02]}  O-O {[%clk 0:02:44]} 12. Rad1 {[%clk 0:02:58]}  b6 {[%clk 0:02:26]} 13. f4 {[%clk 0:02:57]}  Rb8 {[%clk 0:02:25]} 14. Qd2 {[%clk 0:02:52]}  Qd7 {[%clk 0:02:19]} 15. Nb5 {[%clk 0:02:50]}  a5 {[%clk 0:02:02]} 16. Nd4 {[%clk 0:02:50]}  Rbd8 {[%clk 0:01:47]} 17. Rfe1 {[%clk 0:02:47]}  Ng4 {[%clk 0:01:36]} 18. Bh3 {[%clk 0:02:25]}  Bxd4 {[%clk 0:01:30]} 19. Qxd4 {[%clk 0:02:24]}  f5 {[%clk 0:01:22]} 20. Bxg4 {[%clk 0:01:46]}  fxg4 {[%clk 0:01:20]} 21. Re3 {[%clk 0:01:39]}  Rde8 {[%clk 0:00:56]} 22. Rde1 {[%clk 0:01:38]}  Qf7 {[%clk 0:00:51]} 23. b3 {[%clk 0:01:15]}  Rxe3 {[%clk 0:00:34]} 24. Qxe3 {[%clk 0:01:15]}  Qf6 {[%clk 0:00:31]} 25. Kg2 {[%clk 0:01:09]}  Qf7 {[%clk 0:00:26]} 26. h3 {[%clk 0:01:02]}  gxh3+ {[%clk 0:00:24]} 27. Kxh3 {[%clk 0:01:03]}  Qf5+ {[%clk 0:00:24]} 28. Kg2 {[%clk 0:01:02]}  Qf7 {[%clk 0:00:24]} 29. Qe4 {[%clk 0:00:57]}  Kg7 {[%clk 0:00:22]} 30. Re3 {[%clk 0:00:53]}  Qf6 {[%clk 0:00:20]} 31. Qc6 {[%clk 0:00:50]}  Rf7 {[%clk 0:00:15]} 32. Qe8 {[%clk 0:00:39]}  g5 {[%clk 0:00:12]} 33. Rf3 {[%clk 0:00:20]}  g4 {[%clk 0:00:10]} 34. Re3 {[%clk 0:00:19]}  h5 {[%clk 0:00:10]} 35. Qc8 {[%clk 0:00:17]}  h4 {[%clk 0:00:10]} 36. Qxg4+ {[%clk 0:00:16]}  Qg6 {[%clk 0:00:08]} 37. Qxh4 {[%clk 0:00:16]}  Qf6 {[%clk 0:00:08]} 38. Qxf6+ {[%clk 0:00:16]}  Kxf6 {[%clk 0:00:08]} 39. Re8 {[%clk 0:00:15]}  Rg7 {[%clk 0:00:06]} 40. Kf3 {[%clk 0:00:15]}  Kf5 {[%clk 0:00:06]} 41. g4+ {[%clk 0:00:14]}  Kf6 {[%clk 0:00:06]} 42. g5+ {[%clk 0:00:13]}  Kf5 {[%clk 0:00:05]} 43. Rf8+ {[%clk 0:00:12]}  Ke6 {[%clk 0:00:04]} 44. Rf6+ {[%clk 0:00:11]}  Kd7 {[%clk 0:00:03]} 45. Kg4 {[%clk 0:00:12]}  Kc6 {[%clk 0:00:02]} 46. g6 {[%clk 0:00:11]}  Kc5 {[%clk 0:00:02]} 47. Kg5 {[%clk 0:00:11]}  Kb4 {[%clk 0:00:02]} 48. Rf7 {[%clk 0:00:11]}  Rg8 {[%clk 0:00:02]} 49. Rxc7 {[%clk 0:00:11]}  Ka3 {[%clk 0:00:01]} 50. Rc6 {[%clk 0:00:11]}  Kxa2 {[%clk 0:00:02]} 51. Rxb6 {[%clk 0:00:12]}  Ka3 {[%clk 0:00:01]} 52. f5 {[%clk 0:00:12]}  Kb2 {[%clk 0:00:02]} 53. f6 {[%clk 0:00:12]}  Kc3 {[%clk 0:00:00]} 54. f7 {[%clk 0:00:12]} 1-0


[Site "https://www.chess.com"]

[Event "Titled Tuesday Blitz July 11 Early 2023"]
[White "Sava, Christiansen-Danut-Eugen"]
[Black "KorolDimitriy75"]
[WhiteFideId "1210114"]
[WhiteElo "1986"]
[BlackElo "2426"]
[Result "0-1"]
[Round "4"]
[TimeControl "180+2"]
[Date "2023.07.11"]
[WhiteClock "0:01:20"]
[BlackClock "0:00:21"]
[Board "185"]

1. d4 {[%clk 0:02:59]}  Nf6 {[%clk 0:02:59]} 2. c4 {[%clk 0:02:58]}  c5 {[%clk 0:02:59]} 3. d5 {[%clk 0:02:58]}  b5 {[%clk 0:02:59]} 4. cxb5 {[%clk 0:02:56]}  a6 {[%clk 0:03:00]} 5. bxa6 {[%clk 0:02:57]}  g6 {[%clk 0:03:00]} 6. Nc3 {[%clk 0:02:58]}  Bxa6 {[%clk 0:03:00]} 7. g3 {[%clk 0:02:58]}  d6 {[%clk 0:02:59]} 8. Bg2 {[%clk 0:02:59]}  Bg7 {[%clk 0:03:00]} 9. Bf3 {[%clk 0:02:59]}  O-O {[%clk 0:03:00]} 10. Nh3 {[%clk 0:02:58]}  Nbd7 {[%clk 0:02:58]} 11. Nf4 {[%clk 0:02:58]}  Ne5 {[%clk 0:02:58]} 12. Bg2 {[%clk 0:02:58]}  Qa5 {[%clk 0:02:55]} 13. O-O {[%clk 0:02:58]}  Rfb8 {[%clk 0:02:54]} 14. a4 {[%clk 0:02:56]}  Nc4 {[%clk 0:02:49]} 15. Rb1 {[%clk 0:02:51]}  Nd7 {[%clk 0:02:42]} 16. Bd2 {[%clk 0:02:45]}  Nxb2 {[%clk 0:02:26]} 17. Qc2 {[%clk 0:02:44]}  Nc4 {[%clk 0:02:26]} 18. Rxb8+ {[%clk 0:02:31]}  Rxb8 {[%clk 0:02:24]} 19. Rb1 {[%clk 0:02:31]}  Rxb1+ {[%clk 0:02:01]} 20. Nxb1 {[%clk 0:02:32]}  Nxd2 {[%clk 0:01:57]} 21. Nxd2 {[%clk 0:02:33]}  Nb6 {[%clk 0:01:54]} 22. h4 {[%clk 0:02:21]}  Qxa4 {[%clk 0:01:43]} 23. Qb1 {[%clk 0:02:21]}  Qa1 {[%clk 0:01:14]} 24. Qxa1 {[%clk 0:02:19]}  Bxa1 {[%clk 0:01:15]} 25. Kf1 {[%clk 0:02:15]}  h5 {[%clk 0:01:13]} 26. Ke1 {[%clk 0:02:15]}  Bc3 {[%clk 0:00:57]} 27. Kd1 {[%clk 0:02:13]}  Nc4 {[%clk 0:00:52]} 28. Nxc4 {[%clk 0:02:11]}  Bxc4 {[%clk 0:00:51]} 29. Nd3 {[%clk 0:02:11]}  Bd4 {[%clk 0:00:38]} 30. f3 {[%clk 0:01:20]}  Bxd5 {[%clk 0:00:21]} 0-1


[Site "https://www.chess.com"]

[Event "Titled Tuesday Blitz July 11 Early 2023"]
[White "Winkels, Marcel"]
[Black "Lopez Gracia, Fernando"]
[WhiteFideId "1003887"]
[BlackFideId "2207184"]
[WhiteElo "2091"]
[BlackElo "2410"]
[Result "1/2-1/2"]
[Round "4"]
[TimeControl "180+2"]
[Date "2023.07.11"]
[WhiteClock "0:01:16"]
[BlackClock "0:00:14"]
[Board "193"]

1. e4 {[%clk 0:03:00]}  c5 {[%clk 0:02:57]} 2. Nf3 {[%clk 0:03:00]}  g6 {[%clk 0:02:56]} 3. d4 {[%clk 0:02:59]}  cxd4 {[%clk 0:02:57]} 4. Nxd4 {[%clk 0:03:00]}  Bg7 {[%clk 0:02:57]} 5. c4 {[%clk 0:03:00]}  Nc6 {[%clk 0:02:57]} 6. Nc2 {[%clk 0:02:59]}  Nf6 {[%clk 0:02:55]} 7. Nc3 {[%clk 0:02:59]}  O-O {[%clk 0:02:53]} 8. Be2 {[%clk 0:02:59]}  d6 {[%clk 0:02:53]} 9. O-O {[%clk 0:02:59]}  Be6 {[%clk 0:02:48]} 10. Be3 {[%clk 0:02:56]}  Ne5 {[%clk 0:02:42]} 11. b3 {[%clk 0:02:50]}  a6 {[%clk 0:02:25]} 12. Nd4 {[%clk 0:02:44]}  Bg4 {[%clk 0:02:12]} 13. f3 {[%clk 0:02:43]}  Bd7 {[%clk 0:02:09]} 14. Qd2 {[%clk 0:02:42]}  Rc8 {[%clk 0:02:06]} 15. Rac1 {[%clk 0:02:39]}  Nc6 {[%clk 0:01:53]} 16. Nxc6 {[%clk 0:02:35]}  Bxc6 {[%clk 0:01:54]} 17. Nd5 {[%clk 0:02:24]}  Bxd5 {[%clk 0:01:47]} 18. exd5 {[%clk 0:02:15]}  Nd7 {[%clk 0:01:44]} 19. Bd4 {[%clk 0:02:09]}  Bxd4+ {[%clk 0:01:39]} 20. Qxd4 {[%clk 0:02:08]}  Qb6 {[%clk 0:01:40]} 21. Qxb6 {[%clk 0:02:08]}  Nxb6 {[%clk 0:01:41]} 22. Rfe1 {[%clk 0:02:06]}  Nd7 {[%clk 0:01:15]} 23. f4 {[%clk 0:02:05]}  Rc7 {[%clk 0:01:09]} 24. a4 {[%clk 0:01:56]}  a5 {[%clk 0:01:08]} 25. Bd3 {[%clk 0:01:53]}  Nc5 {[%clk 0:01:08]} 26. Bc2 {[%clk 0:01:53]}  f5 {[%clk 0:01:02]} 27. Re2 {[%clk 0:01:46]}  Kg7 {[%clk 0:00:52]} 28. Rce1 {[%clk 0:01:45]}  Kf6 {[%clk 0:00:51]} 29. Kf2 {[%clk 0:01:45]}  b6 {[%clk 0:00:45]} 30. Ke3 {[%clk 0:01:39]}  h5 {[%clk 0:00:21]} 31. Kd2 {[%clk 0:01:38]}  Rh8 {[%clk 0:00:21]} 32. h4 {[%clk 0:01:37]}  Rf8 {[%clk 0:00:20]} 33. Kc3 {[%clk 0:01:33]}  Rfc8 {[%clk 0:00:20]} 34. Kb2 {[%clk 0:01:29]}  Rb8 {[%clk 0:00:20]} 35. Re3 {[%clk 0:01:24]}  Rf8 {[%clk 0:00:20]} 36. Bd1 {[%clk 0:01:22]}  Rfc8 {[%clk 0:00:19]} 37. Bf3 {[%clk 0:01:21]}  Rf8 {[%clk 0:00:19]} 38. Bd1 {[%clk 0:01:20]}  Rb8 {[%clk 0:00:19]} 39. Bf3 {[%clk 0:01:20]}  Rh8 {[%clk 0:00:19]} 40. Bd1 {[%clk 0:01:19]}  Rf8 {[%clk 0:00:18]} 41. Bf3 {[%clk 0:01:18]}  Rh8 {[%clk 0:00:14]} 42. R3e2 {[%clk 0:01:17]}  Rf8 {[%clk 0:00:14]} 43. Re3 {[%clk 0:01:16]}  Rh8 {[%clk 0:00:14]} 1/2-1/2


[Site "https://www.chess.com"]

[Event "Titled Tuesday Blitz July 11 Early 2023"]
[White "Jaivardhan Raj"]
[Black "Szente Varga, Fruzsina"]
[WhiteFideId "25744437"]
[BlackFideId "712264"]
[WhiteElo "2079"]
[BlackElo "2315"]
[Result "0-1"]
[Round "4"]
[TimeControl "180+2"]
[Date "2023.07.11"]
[WhiteClock "0:02:21"]
[BlackClock "0:02:21"]
[Board "195"]

1. e4 {[%clk 0:02:54]}  Nf6 {[%clk 0:02:57]} 2. e5 {[%clk 0:02:53]}  Nd5 {[%clk 0:02:53]} 3. d4 {[%clk 0:02:52]}  d6 {[%clk 0:02:53]} 4. c4 {[%clk 0:02:51]}  Nb6 {[%clk 0:02:53]} 5. exd6 {[%clk 0:02:51]}  exd6 {[%clk 0:02:53]} 6. Nc3 {[%clk 0:02:52]}  Be7 {[%clk 0:02:53]} 7. Nf3 {[%clk 0:02:47]}  O-O {[%clk 0:02:53]} 8. Bd3 {[%clk 0:02:47]}  Bg4 {[%clk 0:02:52]} 9. O-O {[%clk 0:02:45]}  Nc6 {[%clk 0:02:45]} 10. Be3 {[%clk 0:02:38]}  Bf6 {[%clk 0:02:43]} 11. d5 {[%clk 0:02:38]}  Ne5 {[%clk 0:02:36]} 12. b3 {[%clk 0:02:27]}  Nxf3+ {[%clk 0:02:21]} 13. gxf3 {[%clk 0:02:25]}  Bh3 {[%clk 0:02:21]} 14. Re1 {[%clk 0:02:21]}  Bxc3 {[%clk 0:02:21]} 0-1


[Site "https://www.chess.com"]

[Event "Titled Tuesday Blitz July 11 Early 2023"]
[White "Ahmad, Khagan"]
[Black "UgarteCesar"]
[WhiteFideId "13431552"]
[WhiteElo "2620"]
[BlackElo "2251"]
[Result "1-0"]
[Round "4"]
[TimeControl "180+2"]
[Date "2023.07.11"]
[WhiteClock "0:00:15"]
[BlackClock "0:01:05"]
[Board "196"]

1. c4 {[%clk 0:02:52]}  e6 {[%clk 0:02:59]} 2. Nf3 {[%clk 0:02:46]}  d5 {[%clk 0:02:59]} 3. g3 {[%clk 0:02:45]}  Nf6 {[%clk 0:02:59]} 4. Bg2 {[%clk 0:02:45]}  Nbd7 {[%clk 0:02:59]} 5. O-O {[%clk 0:02:46]}  dxc4 {[%clk 0:03:00]} 6. Na3 {[%clk 0:02:45]}  Bxa3 {[%clk 0:02:59]} 7. bxa3 {[%clk 0:02:46]}  O-O {[%clk 0:02:59]} 8. Qc2 {[%clk 0:02:45]}  b5 {[%clk 0:02:50]} 9. a4 {[%clk 0:02:44]}  a6 {[%clk 0:02:47]} 10. Nd4 {[%clk 0:02:44]}  c5 {[%clk 0:02:26]} 11. Nxe6 {[%clk 0:02:40]}  fxe6 {[%clk 0:02:24]} 12. Bxa8 {[%clk 0:02:40]}  Nd5 {[%clk 0:02:21]} 13. axb5 {[%clk 0:02:31]}  axb5 {[%clk 0:02:22]} 14. Rb1 {[%clk 0:01:55]}  Ba6 {[%clk 0:02:20]} 15. Bxd5 {[%clk 0:01:53]}  exd5 {[%clk 0:02:21]} 16. Bb2 {[%clk 0:01:48]}  d4 {[%clk 0:02:20]} 17. Qe4 {[%clk 0:01:19]}  Nf6 {[%clk 0:02:13]} 18. Qe6+ {[%clk 0:01:18]}  Kh8 {[%clk 0:02:12]} 19. Qxa6 {[%clk 0:01:19]}  h5 {[%clk 0:02:09]} 20. Qxb5 {[%clk 0:01:13]}  Qd5 {[%clk 0:02:09]} 21. Ba3 {[%clk 0:01:06]}  Rc8 {[%clk 0:02:07]} 22. Qb7 {[%clk 0:01:04]}  Qe6 {[%clk 0:01:46]} 23. Rb6 {[%clk 0:00:51]}  Qf5 {[%clk 0:01:40]} 24. Rc6 {[%clk 0:00:32]}  Re8 {[%clk 0:01:33]} 25. Rxc5 {[%clk 0:00:26]}  Qc2 {[%clk 0:01:25]} 26. Rc8 {[%clk 0:00:24]}  Rxc8 {[%clk 0:01:13]} 27. Qxc8+ {[%clk 0:00:22]}  Kh7 {[%clk 0:01:14]} 28. Rc1 {[%clk 0:00:17]}  Qxa2 {[%clk 0:01:09]} 29. Qxc4 {[%clk 0:00:16]}  Qxa3 {[%clk 0:01:08]} 30. Qd3+ {[%clk 0:00:16]}  Kh6 {[%clk 0:01:05]} 31. Qxa3 {[%clk 0:00:15]} 1-0


[Site "https://www.chess.com"]

[Event "Titled Tuesday Blitz July 11 Early 2023"]
[White "Adla, Diego"]
[Black "Magallanes, Rey Jomar"]
[WhiteFideId "100072"]
[BlackFideId "5205948"]
[WhiteElo "2519"]
[BlackElo "2240"]
[Result "0-1"]
[Round "4"]
[TimeControl "180+2"]
[Date "2023.07.11"]
[WhiteClock "0:01:15"]
[BlackClock "0:02:10"]
[Board "198"]

1. e4 {[%clk 0:02:55]}  c5 {[%clk 0:02:59]} 2. Nf3 {[%clk 0:02:55]}  d6 {[%clk 0:02:59]} 3. d4 {[%clk 0:02:55]}  cxd4 {[%clk 0:03:00]} 4. Nxd4 {[%clk 0:02:56]}  Nf6 {[%clk 0:03:00]} 5. Nc3 {[%clk 0:02:57]}  a6 {[%clk 0:03:01]} 6. Be3 {[%clk 0:02:56]}  e5 {[%clk 0:03:00]} 7. Nb3 {[%clk 0:02:56]}  Be6 {[%clk 0:03:00]} 8. f3 {[%clk 0:02:55]}  Be7 {[%clk 0:03:00]} 9. Qd2 {[%clk 0:02:55]}  d5 {[%clk 0:03:00]} 10. exd5 {[%clk 0:02:49]}  Nxd5 {[%clk 0:03:01]} 11. O-O-O {[%clk 0:02:45]}  Nxe3 {[%clk 0:02:57]} 12. Qxe3 {[%clk 0:02:44]}  Qc7 {[%clk 0:02:56]} 13. Bd3 {[%clk 0:02:34]}  Nc6 {[%clk 0:02:54]} 14. Be4 {[%clk 0:02:33]}  O-O {[%clk 0:02:51]} 15. g4 {[%clk 0:02:23]}  f5 {[%clk 0:02:45]} 16. gxf5 {[%clk 0:02:17]}  Bxf5 {[%clk 0:02:45]} 17. Rd5 {[%clk 0:02:11]}  h6 {[%clk 0:02:35]} 18. Bxf5 {[%clk 0:02:08]}  Bg5 {[%clk 0:02:35]} 19. Be6+ {[%clk 0:01:39]}  Kh8 {[%clk 0:02:32]} 20. Qxg5 {[%clk 0:01:36]}  hxg5 {[%clk 0:02:31]} 21. h4 {[%clk 0:01:37]}  g4 {[%clk 0:02:15]} 22. Rd7 {[%clk 0:01:21]}  Qb6 {[%clk 0:02:12]} 23. Rg1 {[%clk 0:01:15]}  Qxg1+ {[%clk 0:02:10]} 0-1


[Site "https://www.chess.com"]

[Event "Titled Tuesday Blitz July 11 Early 2023"]
[White "Palacio,Igor Da Paz"]
[Black "Tymrakiewicz, Rafal"]
[WhiteFideId "2121140"]
[BlackFideId "1108832"]
[WhiteElo "2214"]
[BlackElo "2390"]
[Result "1/2-1/2"]
[Round "4"]
[TimeControl "180+2"]
[Date "2023.07.11"]
[WhiteClock "0:00:05"]
[BlackClock "0:00:13"]
[Board "201"]

1. e4 {[%clk 0:03:00]}  Nf6 {[%clk 0:02:13]} 2. Nc3 {[%clk 0:02:57]}  d5 {[%clk 0:02:11]} 3. exd5 {[%clk 0:02:56]}  a6 {[%clk 0:02:10]} 4. Nf3 {[%clk 0:02:52]}  b5 {[%clk 0:02:09]} 5. a3 {[%clk 0:02:51]}  Bb7 {[%clk 0:02:09]} 6. g3 {[%clk 0:02:49]}  Nxd5 {[%clk 0:02:08]} 7. Nxd5 {[%clk 0:02:44]}  Bxd5 {[%clk 0:02:06]} 8. Bg2 {[%clk 0:02:44]}  c5 {[%clk 0:02:06]} 9. O-O {[%clk 0:02:43]}  Nc6 {[%clk 0:02:06]} 10. d3 {[%clk 0:02:41]}  e6 {[%clk 0:02:07]} 11. Re1 {[%clk 0:02:40]}  Be7 {[%clk 0:02:06]} 12. Qe2 {[%clk 0:02:33]}  O-O {[%clk 0:01:56]} 13. c4 {[%clk 0:02:29]}  Nd4 {[%clk 0:01:50]} 14. Nxd4 {[%clk 0:02:25]}  Bxg2 {[%clk 0:01:50]} 15. Nxe6 {[%clk 0:02:18]}  fxe6 {[%clk 0:01:50]} 16. Kxg2 {[%clk 0:02:11]}  Bf6 {[%clk 0:01:41]} 17. Be3 {[%clk 0:01:48]}  Qd7 {[%clk 0:01:28]} 18. Rac1 {[%clk 0:01:39]}  b4 {[%clk 0:01:17]} 19. axb4 {[%clk 0:01:11]}  cxb4 {[%clk 0:01:17]} 20. c5 {[%clk 0:01:11]}  Rfc8 {[%clk 0:01:12]} 21. Red1 {[%clk 0:00:54]}  a5 {[%clk 0:01:11]} 22. d4 {[%clk 0:00:53]}  Qd5+ {[%clk 0:01:10]} 23. Qf3 {[%clk 0:00:52]}  a4 {[%clk 0:01:10]} 24. Qxd5 {[%clk 0:00:49]}  exd5 {[%clk 0:01:11]} 25. Ra1 {[%clk 0:00:46]}  Ra6 {[%clk 0:01:02]} 26. Ra2 {[%clk 0:00:43]}  Kf7 {[%clk 0:00:50]} 27. Rda1 {[%clk 0:00:38]}  Rca8 {[%clk 0:00:50]} 28. Kf3 {[%clk 0:00:22]}  Ke6 {[%clk 0:00:50]} 29. Ke2 {[%clk 0:00:22]}  Kd7 {[%clk 0:00:50]} 30. Kd3 {[%clk 0:00:22]}  Kc6 {[%clk 0:00:50]} 31. b3 {[%clk 0:00:12]}  a3 {[%clk 0:00:46]} 32. Re1 {[%clk 0:00:11]}  Re8 {[%clk 0:00:39]} 33. Bd2 {[%clk 0:00:11]}  Rxe1 {[%clk 0:00:39]} 34. Bxe1 {[%clk 0:00:12]}  Kb5 {[%clk 0:00:39]} 35. Bd2 {[%clk 0:00:11]}  g5 {[%clk 0:00:36]} 36. f3 {[%clk 0:00:08]}  Re6 {[%clk 0:00:31]} 37. Be3 {[%clk 0:00:07]}  h5 {[%clk 0:00:30]} 38. Re2 {[%clk 0:00:06]}  g4 {[%clk 0:00:25]} 39. f4 {[%clk 0:00:05]}  Re4 {[%clk 0:00:24]} 40. Ra2 {[%clk 0:00:04]}  Re8 {[%clk 0:00:19]} 41. Rc2 {[%clk 0:00:04]}  Ra8 {[%clk 0:00:14]} 42. Ra2 {[%clk 0:00:04]}  Re8 {[%clk 0:00:14]} 43. Kd2 {[%clk 0:00:04]}  Re4 {[%clk 0:00:13]} 44. Kd3 {[%clk 0:00:05]}  Re8 {[%clk 0:00:13]} 1/2-1/2


[Site "https://www.chess.com"]

[Event "Titled Tuesday Blitz July 11 Early 2023"]
[White "Villuendas Valero, Adrian"]
[Black "Schachpanda_Youtube"]
[WhiteFideId "2262460"]
[WhiteElo "2380"]
[BlackElo "2195"]
[Result "1-0"]
[Round "4"]
[TimeControl "180+2"]
[Date "2023.07.11"]
[WhiteClock "0:01:13"]
[BlackClock "0:00:25"]
[Board "202"]

1. Nf3 {[%clk 0:03:00]}  d5 {[%clk 0:02:59]} 2. b3 {[%clk 0:03:01]}  Nf6 {[%clk 0:03:00]} 3. Bb2 {[%clk 0:03:01]}  g6 {[%clk 0:03:00]} 4. e3 {[%clk 0:03:01]}  Bg7 {[%clk 0:03:00]} 5. d4 {[%clk 0:03:00]}  O-O {[%clk 0:03:00]} 6. g3 {[%clk 0:03:01]}  Bf5 {[%clk 0:02:59]} 7. Bg2 {[%clk 0:03:01]}  Nbd7 {[%clk 0:02:57]} 8. O-O {[%clk 0:03:00]}  c6 {[%clk 0:02:57]} 9. c4 {[%clk 0:03:00]}  Rc8 {[%clk 0:02:53]} 10. Nc3 {[%clk 0:03:00]}  a6 {[%clk 0:02:52]} 11. Qe2 {[%clk 0:02:51]}  b5 {[%clk 0:02:51]} 12. cxd5 {[%clk 0:02:48]}  cxd5 {[%clk 0:02:51]} 13. Rac1 {[%clk 0:02:44]}  Qb6 {[%clk 0:02:40]} 14. Ne5 {[%clk 0:02:26]}  e6 {[%clk 0:02:28]} 15. Nxd7 {[%clk 0:02:18]}  Nxd7 {[%clk 0:02:28]} 16. g4 {[%clk 0:02:13]}  Be4 {[%clk 0:01:59]} 17. f3 {[%clk 0:02:11]}  e5 {[%clk 0:01:56]} 18. fxe4 {[%clk 0:02:06]}  exd4 {[%clk 0:01:56]} 19. Nxd5 {[%clk 0:02:06]}  Qd6 {[%clk 0:01:35]} 20. exd4 {[%clk 0:01:53]}  Kh8 {[%clk 0:01:28]} 21. e5 {[%clk 0:01:51]}  Qe6 {[%clk 0:01:23]} 22. Nf4 {[%clk 0:01:48]}  Qb6 {[%clk 0:01:22]} 23. Nd5 {[%clk 0:01:27]}  Qe6 {[%clk 0:01:20]} 24. g5 {[%clk 0:01:23]}  Nb6 {[%clk 0:00:52]} 25. Nf6 {[%clk 0:01:16]}  Bxf6 {[%clk 0:00:42]} 26. Rxf6 {[%clk 0:01:17]}  Rxc1+ {[%clk 0:00:41]} 27. Bxc1 {[%clk 0:01:16]}  Qc8 {[%clk 0:00:38]} 28. Ba3 {[%clk 0:01:15]}  Rd8 {[%clk 0:00:25]} 29. Rxb6 {[%clk 0:01:13]} 1-0


[Site "https://www.chess.com"]